Cogmind - Beta 17 *** ADVENTURER MODE // 2026.08.21 @ 07:32:42 Player: F-forge Result: Destroyed by G-50 Soldier with Heavy Laser Performance ------------- Evolutions (5) 2500 Regions Visited (9) 1800 Robots Destroyed (77) 385 Value Destroyed (1663) 1663 Prototype IDs (7) 140 Alien Tech Used (0) 0 Bonus (307) 307 TOTAL SCORE: 6795 Bonus ------- Follower Combat Kills 7 Aligned with FarCom 300 Cogmind --------- Core Integrity 0/1000 Matter 225/300 Energy 99/100 System Corruption 11% Temperature Cool (9) Movement Core (50) Location -5/Factory Parts ------- > --- POWER (2) -------- (None) > --- PROPULSION (6) --- (None) > --- UTILITY (7) ------ Advanced Terrain Scan Processor > --- WEAPON (2) ------- (None) > --- INVENTORY (5) ---- Heavy Deuterium Engine Improved Trap Scanner Recoil Stabilizer Improved Reaction Control System Improved Core Shielding Peak State ------------ > --- POWER ------------ Micro Nuclear Core Light Angular Momentum Engine > --- PROPULSION ------- Aerolev Unit Aerolev Unit Aerolev Unit Aerolev Unit Aerolev Unit > --- UTILITY ---------- Large Storage Unit Advanced Weight Redist. System Improved Trap Scanner Visual Processing Unit Advanced Terrain Scan Processor System Shield Advanced System Restoration Module > --- WEAPON ----------- Gatling Laser Assault Cannon > --- INVENTORY -------- Heavy Deuterium Engine Improved Heat Sink Improved Terrain Scanner Core Analyzer Recoil Stabilizer Transmission Jammer Improved Reaction Control System Medium Armor Plating Improved Shield Generator Component Analysis Suite Corruption Screen HERF Cannon Heavy Rocket Launcher Remote Datajack [Rating: 65] Favorites ----------- Power Light Deuterium Engine Engine Light Deuterium Engine Power Core Nuclear Core Propulsion Aerolev Unit Leg Aluminum Leg Hover Unit Aerolev Unit Flight Unit Flight Unit Utility Visual Processing Unit Device Seismic Detector Storage Large Storage Unit Processor Visual Processing Unit Hackware System Shield Protection Medium Armor Plating Weapon Assault Cannon Energy Gun Gatling Laser Energy Cannon HERF Cannon Ballistic Gun Autogun Ballistic Cannon Assault Cannon Launcher Heavy Rocket Launcher Special Weapon Mining Laser Build | -11 -10 -9 -9 -9 -8 -8 -7 -6 -5 ------- Run | Yrd Mat Mat Min Exi Min Mat Fac Fac Fac Slots Evolved 10 | . . 2 . . . 2 2 2 2 Power 1 | . . . . . . . 1 . . Propulsion 4 | . . 1 . . . 1 1 . 1 Utility 5 | . . 1 . . . 1 . 2 1 Weapon . | . . . . . . . . . . Parts Attached 57 | 9 8 6 3 2 2 6 7 7 7 Power 9 | 2 . 1 . . 1 . 1 3 1 Engine 7 | 2 . 1 . . . . 1 2 1 Core 2 | . . . . . 1 . . 1 . Reactor . | . . . . . . . . . . Propulsion 12 | 2 3 1 . . . 4 2 . . Treads . | . . . . . . . . . . Leg 4 | 2 1 1 . . . . . . . Wheel . | . . . . . . . . . . Hover 5 | . . . . . . 4 1 . . Flight 3 | . 2 . . . . . 1 . . Utility 21 | 3 1 2 2 2 . 2 3 3 3 Device 10 | 2 . . . 1 . 1 1 2 3 Storage 7 | 1 1 1 1 1 . 1 1 . . Processor 2 | . . 1 . . . . . 1 . Hackware 1 | . . . . . . . 1 . . Protection 1 | . . . 1 . . . . . . Artifact . | . . . . . . . . . . Weapon 15 | 2 4 2 1 . 1 . 1 1 3 Energy Gun 7 | 2 3 . 1 . . . 1 . . Energy Cannon 2 | . . . . . . . . . 2 Ballistic Gun 2 | . . 2 . . . . . . . Ballistic Cannon 1 | . . . . . 1 . . . . Launcher 1 | . . . . . . . . 1 . Special Weapon 2 | . 1 . . . . . . . 1 Impact Weapon . | . . . . . . . . . . Slashing Weapon . | . . . . . . . . . . Piercing Weapon . | . . . . . . . . . . Special Melee Weapon . | . . . . . . . . . . Unidentified Prototypes 5 | . . . . 2 . 1 2 . . Parts Lost 22 | . . . . . 1 . 1 . 20 Power 4 | . . . . . . . 1 . 3 Propulsion 5 | . . . . . . . . . 5 Utility 7 | . . . . . . . . . 7 Weapon 6 | . . . . . 1 . . . 5 Highest Loss Streak 18 | . . . . . 1 . 1 . 18 To Critical Strikes . | . . . . . . . . . . Average Backups 11 | 3 7 9 10 11 10 13 14 14 13 Power . | . 1 . . . . 1 . . 1 Propulsion 1 | . 2 2 2 3 . 1 1 . . Utility 7 | . 2 5 6 6 7 9 10 10 9 Weapon 1 | 1 1 1 2 1 2 1 1 1 1 Tool/Special . | . . . . . . . . . . Unused Backups 16 | 2 . 1 . 3 . . 4 . 6 Power 1 | . . 1 . . . . . . . Propulsion 3 | . . . . 3 . . . . . Utility 12 | 2 . . . . . . 4 . 6 Weapon . | . . . . . . . . . . Tool/Special . | . . . . . . . . . . Average Slot Usage (%) 93 | . 98 88 100 99 99 81 97 99 73 Engine 7 | . 14 11 11 11 5 . 6 6 3 Core 3 | . . . . . 5 8 7 6 3 Leg 15 | . 27 22 33 33 33 15 . . . Hover 14 | . . . . . . 14 38 32 22 Device 10 | . 14 11 8 11 11 7 7 13 11 Storage 8 | . 14 11 11 10 11 9 7 6 4 Processor 9 | . . 11 11 11 11 9 7 12 9 Hackware 2 | . . . . . . . 4 6 3 Energy Gun 10 | . 23 11 17 11 16 14 7 6 3 Ballistic Gun 1 | . . 10 4 . . . . . . Ballistic Cannon 2 | . . . . . . 3 7 5 3 Special Weapon 2 | . 2 . . 10 5 . . . . Peak Build Rating 65 | 9 10 16 17 22 24 32 48 62 65 Average Rating 29 | 7 7 13 16 15 22 23 43 55 50 On Entrance 22 | . 7 10 16 16 15 23 32 46 62 Avg Prop Armor Cover (%) . | . . . . . . . . . . Naked Turns . | . . . . . . . . . . Heaviest Build 56 | 13 22 22 32 32 34 35 45 49 56 Greatest Support 49 | 20 20 30 30 30 30 38 46 49 49 Greatest Overweight (x) 9 | 2 1 1 1 1 1 2 1 1 9 Average Overweight (x) . | . . . . . . . . . . Largest Inventory Capacity 15 | 8 10 10 15 15 15 15 15 15 15 Average Capacity 13 | 7 8 10 12 14 15 15 15 15 14 Most Carried 15 | 5 10 10 12 13 11 15 15 15 15 Average Carried 11 | 3 7 9 10 11 10 13 14 14 13 Final Capacity 15 | 8 10 10 15 15 15 15 15 15 5 Final Carried 15 | 5 10 10 12 9 11 15 14 15 5 Class Distribution -------------------- 34% | Mutant 30% | Scavenger-Mutant 30% | Hacker-Mutant 4% | Hacker-Scout Dominant Class ---------------- Mutant | -10/Materials Mutant | -9/Materials Scavenger-Mutant | -9/Mines Scavenger-Mutant | -9/Exiles Scavenger-Mutant | -8/Mines Mutant | -8/Materials Hacker-Mutant | -7/Factory Hacker-Mutant | -6/Factory Hacker-Mutant | -5/Factory Resources | -11 -10 -9 -9 -9 -8 -8 -7 -6 -5 ----------- Run | Yrd Mat Mat Min Exi Min Mat Fac Fac Fac Matter Collected 1637 | 291 118 258 81 60 135 123 111 251 209 Remotely . | . . . . . . . . . . Salvage Created 2593 | 283 315 462 252 . 57 163 134 448 479 Parts 155 | 35 16 19 19 . 6 10 14 22 14 Haulers Intercepted 8 | . 1 2 . . . 1 1 2 1 Recyclers Shooed 5 | 2 1 1 . . . . . 1 . Parts Field Recycled . | . . . . . . . . . . Retrieved Matter . | . . . . . . . . . . Parts Self-Destructed . | . . . . . . . . . . Prevented . | . . . . . . . . . . Parts Restored . | . . . . . . . . . . Kills | -11 -10 -9 -9 -9 -8 -8 -7 -6 -5 ------- Run | Yrd Mat Mat Min Exi Min Mat Fac Fac Fac Combat Hostiles Destroyed 33 | . 4 2 8 . 4 . . 6 9 Guns 22 | . 3 2 8 . 4 . . 2 3 Cannons 2 | . . . . . . . . 1 1 AOE 8 | . . . . . . . . 3 5 Classes Destroyed 12 | 3 4 1 1 . . . . 1 2 Worker 10 | 4 1 . . . . 1 2 2 . Builder 2 | . 1 . . . . . . 1 . Tunneler 9 | 9 . . . . . . . . . Hauler 8 | . 1 2 . . . 1 1 2 1 Recycler 10 | 1 1 4 1 . . 1 1 1 . Watcher 5 | . 2 1 . . . . 1 . 1 Swarmer 15 | . . . 6 . 4 . . 4 1 Grunt 8 | . 4 1 . . . . . . 3 Brawler 1 | . . . . . . . . . 1 Sentry 5 | . . 1 2 . . . . 1 1 Hunter 2 | . . . . . . . . . 2 Programmer 2 | . . . . . . . . 1 1 Best Kill Streak 5 | 4 2 4 4 . 3 1 2 5 5 Combat Bots Only 5 | . 1 1 4 . 3 . . 4 5 Max Kills in Single Turn 4 | 1 1 1 1 . 1 1 1 4 2 Gunslinging . | . . . . . . . . . . Exploded 3 | . . . . . . . . 3 2 Melee . | . . . . . . . . . . Uniques/NPCs Destroyed . | . . . . . . . . . . Combat | -11 -10 -9 -9 -9 -8 -8 -7 -6 -5 -------- Run | Yrd Mat Mat Min Exi Min Mat Fac Fac Fac Hostile Shots Fired 360 | . 29 10 30 . 7 . . 40 244 Missed 118 | . 7 2 7 . 2 . . 21 79 Hits 242 | . 22 8 23 . 5 . . 19 165 Melee 2 | . . . . . . . . . 2 Projectile 240 | . 22 8 23 . 5 . . 19 163 AOE 1 | . . . . . . . . . 1 Critical Strikes 7 | . . . . . . . . . 7 Part Disruptions 3 | . . . 1 . . 1 . . 1 Damage Taken 3361 | . 239 82 199 . 33 35 . 151 2622 Core 1161 | . 57 11 50 . . . . 30 1013 Absorbed by Shields 8 | . . . . . . . . . 8 Ignored by Resistances 946 | . 71 23 62 . 10 10 . 47 723 Regen/Repaired (Parts) 89 | . . . . . . . 37 52 . Core Remaining (%) 92 | 100 77 . . . 84 100 100 96 . Volleys Fired 213 | 33 44 31 20 8 7 10 9 19 32 Largest 2 | 2 2 2 2 1 2 2 2 2 2 Hottest 140 | 80 140 88 121 100 121 121 117 117 117 Shots Fired 370 | 66 77 60 37 8 9 18 16 36 43 Gun 298 | 66 72 60 36 . 9 11 7 18 19 Cannon 53 | . . . . . . 7 9 17 20 Launcher 5 | . . . . . . . . 1 4 Special 14 | . 5 . 1 8 . . . . . Kinetic 82 | . . 31 7 . . 7 9 17 11 Thermal 279 | 66 77 29 30 8 9 11 7 18 24 Explosive 5 | . . . . . . . . 1 4 Electromagnetic 4 | . . . . . . . . . 4 Robot Hit Streak 22 | 15 19 14 11 . 10 5 11 22 17 Robot Miss Streak 3 | 2 2 2 2 . 1 1 2 2 3 Penetration Max . | . . . . . . . . . . Secondary Targets 2 | . 1 . 1 . . . . . . Max Gunslinging Chain 1 | . 1 . 1 . . . . . . Shots Hit Robots 262 | 47 56 48 26 . 7 5 7 28 38 Core Hits 129 | 15 17 13 11 . 4 5 7 23 34 Critical Kills . | . . . . . . . . . . Critical Parts Destroyed . | . . . . . . . . . . Critical Strikes 9 | . 4 2 2 . . 1 . . . Burn 9 | . 4 2 2 . . 1 . . . Melee Attacks . | . . . . . . . . . . Impact . | . . . . . . . . . . Slashing . | . . . . . . . . . . Piercing . | . . . . . . . . . . Sneak Attacks . | . . . . . . . . . . Combat Hostiles . | . . . . . . . . . . Follow-up Attacks . | . . . . . . . . . . Damage Inflicted 5213 | 545 705 730 387 . 116 82 258 948 1442 Guns 3508 | 545 633 730 387 . 116 60 132 451 454 Cannons 766 | . . . . . . 22 51 267 426 Explosions 863 | . . . . . . . 75 230 558 Melee . | . . . . . . . . . . Ramming 4 | . . . . . . . . . 4 Kinetic 1042 | . . 393 79 . . 22 51 267 230 Thermal 3346 | 545 705 337 308 . 116 60 132 522 621 Explosive 792 | . . . . . . . 75 159 558 Electromagnetic 29 | . . . . . . . . . 29 Impact . | . . . . . . . . . . Slashing . | . . . . . . . . . . Piercing . | . . . . . . . . . . Highest Corruption 11 | . 2 . . . . 1 . 1 11 Average Corruption 3 | . 1 . . . . 1 . 1 8 Corruption Purged 5 | . . . . . . . . 2 3 Corruption Blocked . | . . . . . . . . . . Effects 13 | . 3 . . . . . . 1 9 Message Errors 3 | . 1 . . . . . . . 2 Matter Fused 3 | . 1 . . . . . . . 2 Heat Flow Errors 1 | . . . . . . . . . 1 Parts Rejected 1 | . . . . . . . . . 1 Parts Fused 1 | . 1 . . . . . . . . Data Loss (minor) 2 | . . . . . . . . . 2 Data Loss (major) 1 | . . . . . . . . . 1 Misfires 1 | . . . . . . . . 1 . Overload Shots . | . . . . . . . . . . Overflow Damage 15 | . . . . . . . . 15 . Projectiles . | . . . . . . . . . . Explosions 15 | . . . . . . . . 15 . Melee . | . . . . . . . . . . Knockbacks 1 | . . . . . . . . . 1 Impact . | . . . . . . . . . . Kinetic 1 | . . . . . . . . . 1 Secondary . | . . . . . . . . . . Self-Inflicted Damage 23 | . . . . . . . . 22 1 Shots 1 | . . . . . . . . 1 . Rammed 3 | . . . . . . . . . 3 Targets Rammed 4 | . 1 . . . . . . . 3 Kicked 1 | . 1 . . . . . . . . Crushed . | . . . . . . . . . . Highest Temperature 408 | 108 243 221 294 24 92 202 148 251 408 Average Temperature 74 | 30 74 73 101 8 40 77 65 85 115 Received Heat Transfer 919 | . 174 30 27 . . . . 36 652 Effects 10 | . 3 . . . . . . 3 4 Shutdowns 2 | . . . . . . . . . 2 Energy Bleed 2 | . . . . . . . . . 2 Interference 6 | . 3 . . . . . . 3 . Siege Activations . | . . . . . . . . . . Martial Activations . | . . . . . . . . . . Shielding Activations . | . . . . . . . . . . Robots Disrupted . | . . . . . . . . . . Combat Hostiles . | . . . . . . . . . . Robots Corrupted . | . . . . . . . . . . Combat Hostiles . | . . . . . . . . . . Parts Fried . | . . . . . . . . . . Impact Corruptions . | . . . . . . . . . . Robots Melted 2 | . 1 . . . . . . 1 . Combat Hostiles 1 | . 1 . . . . . . . . Parts Melted 16 | 2 6 3 1 . . 1 . 1 2 Heat Transferred 8313 | 1225 2058 962 925 . 296 222 300 1125 1200 Parts Sabotaged . | . . . . . . . . . . Parts Stolen . | . . . . . . . . . . Parts Stripped . | . . . . . . . . . . Power Chain Reactions . | . . . . . . . . . . Alert | -11 -10 -9 -9 -9 -8 -8 -7 -6 -5 ------- Run | Yrd Mat Mat Min Exi Min Mat Fac Fac Fac Maximum Alert Level . | . . . . . . . . . . Low Security (%) 100 | 100 100 100 100 . 100 100 100 100 100 Level 1 . | . . . . . . . . . . Level 2 . | . . . . . . . . . . Level 3 . | . . . . . . . . . . Level 4 . | . . . . . . . . . . Level 5 . | . . . . . . . . . . High Security . | . . . . . . . . . . Max Security . | . . . . . . . . . . Peak Influence 162 | 10 82 32 85 . 75 7 159 152 162 Initial 59 | . . . 3 . . 1 . 7 59 Average 24 | 1 23 7 39 . 22 . 48 9 42 Influence Increases 1629 | 70 183 99 234 . 105 19 208 284 427 Destroy 0b10 Robot/C 680 | . 80 40 180 . 80 . . 120 180 Destroy 0b10 Robot/NC 220 | 70 30 35 5 . . 15 25 30 10 Destroy Leader 156 | . 26 16 20 . 10 2 4 34 44 Allied During Kill 5 | . . . 5 . . . . . . Successful Hack 64 | . . 8 . . . . 22 18 16 Disable Machine 171 | . . . 9 . . . 144 18 . Destroy Structure 78 | . 2 . . . . 2 13 19 42 Partial Spotted 30 | . . . . . . . . 30 . Lose Combat Pursuer 225 | . 45 . 15 . 15 . . 15 135 Influence Decreases 1557 | 70 183 89 230 14 100 24 190 160 497 Entered New Map 119 | . . . 7 14 . 4 . 11 83 Time Decay 1277 | 70 183 89 183 . 90 19 180 149 314 Lost Part 120 | . . . . . 10 . 10 . 100 Lost Ally 41 | . . . 40 . . 1 . . . Squads Dispatched 9 | . . . . . . 1 2 4 2 Investigation 2 | . . . . . . . 1 . 1 Extermination 4 | . . . . . . . 1 2 1 Reinforcement 2 | . . . . . . 1 . 1 . Assault . | . . . . . . . . . . Garrison 1 | . . . . . . . . 1 . Intercept . | . . . . . . . . . . Searches Triggered . | . . . . . . . . . . Construction Impeded . | . . . . . . . . . . Haulers Reinforced 1 | . . . . . . . . 1 . Active Scanning Responses . | . . . . . . . . . . Cargo Convoy Interrupts . | . . . . . . . . . . Stealth | -11 -10 -9 -9 -9 -8 -8 -7 -6 -5 --------- Run | Yrd Mat Mat Min Exi Min Mat Fac Fac Fac Distress Signals 2 | . . 1 . . . . . . 1 Communications Jammed . | . . . . . . . . . . Distress Signals . | . . . . . . . . . . Times Spotted 62 | . 9 4 11 . 4 . 1 5 28 Peak Tracking Total 11 | . 3 3 5 . 2 . 2 1 11 Tactical Retreats 12 | . 3 . 1 . 1 . . 1 6 Traps | -11 -10 -9 -9 -9 -8 -8 -7 -6 -5 ------- Run | Yrd Mat Mat Min Exi Min Mat Fac Fac Fac Traps Triggered 17 | . 3 . . . . 6 1 3 4 Indirectly . | . . . . . . . . . . Trap Hack Attempts . | . . . . . . . . . . Triggered . | . . . . . . . . . . Disarmed 3 | . 3 . . . . . . . . Reprogrammed . | . . . . . . . . . . Reused . | . . . . . . . . . . Traps Extracted . | . . . . . . . . . . Installed . | . . . . . . . . . . Triggered . | . . . . . . . . . . Machines | -11 -10 -9 -9 -9 -8 -8 -7 -6 -5 ---------- Run | Yrd Mat Mat Min Exi Min Mat Fac Fac Fac Machines Disabled 20 | . . . 1 1 . . 16 2 . Max in Single Turn 8 | . . . 1 1 . . 8 1 . Garrison Access 2 | . . . . . . . . 1 1 Machines Repaired . | . . . . . . . . . . Machines Dismantled . | . . . . . . . . . . Machines Sabotaged . | . . . . . . . . . . Overloaded Fab Kills . | . . . . . . . . . . Hacking | -11 -10 -9 -9 -9 -8 -8 -7 -6 -5 --------- Run | Yrd Mat Mat Min Exi Min Mat Fac Fac Fac Machines Accessed 23 | . 2 2 2 . . . 9 5 3 Terminals 10 | . 2 2 2 . . . 4 . . Fabricators 4 | . . . . . . . 2 1 1 Repair Stations 4 | . . . . . . . 2 2 . Recycling Units 1 | . . . . . . . . 1 . Scanalyzers 1 | . . . . . . . . . 1 Garrison Access 3 | . . . . . . . 1 1 1 Total Hacks 48 | . 4 5 3 . . . 15 10 11 Successful 28 | . 4 2 2 . . . 7 7 6 Failed 20 | . . 3 1 . . . 8 3 5 Catastrophic 3 | . . . . . . . 3 . . Database Lockouts . | . . . . . . . . . . Manual 7 | . . . . 2 . . 2 3 . Terminals 18 | . 4 5 3 . . . 6 . . Fabricators 7 | . . . . . . . 3 1 3 Repair Stations 8 | . . . . . . . 4 4 . Recycling Units 2 | . . . . . . . . 2 . Scanalyzers 7 | . . . . . . . . . 7 Garrison Access 6 | . . . . . . . 2 3 1 Terminal Hacks 9 | . 4 2 2 . . . 1 . . Record 1 | . . . 1 . . . . . . Prototype ID Bank 1 | . . 1 . . . . . . . Locate Traps 1 | . . . . . . . 1 . . Disarm Traps 1 | . 1 . . . . . . . . Dispatch Records 1 | . 1 . . . . . . . . Security Status 1 | . 1 . . . . . . . . Surveillance Status 1 | . 1 . . . . . . . . Assault Status 1 | . . . 1 . . . . . . Zone Layout 1 | . . 1 . . . . . . . Fabricator Hacks 7 | . . . . . . . 3 1 3 Network Status 2 | . . . . . . . 2 . . Load Schematic 1 | . . . . . . . . . 1 Build 4 | . . . . . . . 1 1 2 Repair Station Hacks 5 | . . . . . . . 3 2 . Scan Component 3 | . . . . . . . 2 1 . Repair 2 | . . . . . . . 1 1 . Recycling Unit Hacks . | . . . . . . . . . . Scanalyzer 2 | . . . . . . . . . 2 Insert Component 1 | . . . . . . . . . 1 Analyze 1 | . . . . . . . . . 1 Garrison Access Hacks 3 | . . . . . . . . 2 1 Seal Access 2 | . . . . . . . . 1 1 Coupler Status 1 | . . . . . . . . 1 . Unauthorized Hacks 2 | . . . . . . . . 2 . Terminals . | . . . . . . . . . . Fabricators . | . . . . . . . . . . Repair Stations . | . . . . . . . . . . Recycling Units 2 | . . . . . . . . 2 . Reject 1 | . . . . . . . . 1 . Mask 1 | . . . . . . . . 1 . Scanalyzers . | . . . . . . . . . . Garrison Access . | . . . . . . . . . . Data Cores Recovered . | . . . . . . . . . . Used . | . . . . . . . . . . Hacking Detections 14 | . 1 2 2 . . . 6 1 2 Full Trace Events 2 | . . . . . . . 1 . 1 Feedback Events . | . . . . . . . . . . Feedback Blocked . | . . . . . . . . . . Robot Schematics Acquired . | . . . . . . . . . . Robots Built . | . . . . . . . . . . Authchips . | . . . . . . . . . . Time . | . . . . . . . . . . Total Robot Build Rating . | . . . . . . . . . . Part Schematics Acquired 1 | . . . . . . . . . 1 Parts Built 7 | . . . . . . . 2 2 3 Authchips . | . . . . . . . . . . Time 445 | . . . . . . . 106 117 222 Total Part Build Rating 41 | . . . . . . . 12 14 15 Part Studies Acquired . | . . . . . . . . . . Parts Repaired 2 | . . . . . . . 1 1 . Time 79 | . . . . . . . 19 60 . Parts Recycled . | . . . . . . . . . . Recycled Matter . | . . . . . . . . . . Retrieved Matter . | . . . . . . . . . . Retrieved Components . | . . . . . . . . . . Parts Scanalyzed 1 | . . . . . . . . . 1 Part Schematics Acquired 1 | . . . . . . . . . 1 Parts Damaged . | . . . . . . . . . . Bothacking | -11 -10 -9 -9 -9 -8 -8 -7 -6 -5 ------------ Run | Yrd Mat Mat Min Exi Min Mat Fac Fac Fac Used RIF Installer . | . . . . . . . . . . Robots Hacked . | . . . . . . . . . . Non-combat . | . . . . . . . . . . Combat . | . . . . . . . . . . Robot Hacks Applied . | . . . . . . . . . . Relay Couplers Released . | . . . . . . . . . . Fabnet Peak Effective % . | . . . . . . . . . . Robots Rewired . | . . . . . . . . . . Allies Hacked . | . . . . . . . . . . Hacks Repelled . | . . . . . . . . . . Allies | -11 -10 -9 -9 -9 -8 -8 -7 -6 -5 -------- Run | Yrd Mat Mat Min Exi Min Mat Fac Fac Fac Total Allies 2 | . . . 2 . . . . . . Largest Group 2 | . . . 2 . . . . . . Highest-Rated Group 45 | . . . 45 . . . . . . Highest-Rated Ally 31 | . . . 31 . . . . . . Total Orders 5 | . . . . . 4 1 . . . EXPLORE 4 | . . . . . 3 1 . . . RETURN 1 | . . . . . 1 . . . . Ally Attacks 9 | . . . 9 . . . . . . Total Damage 126 | . . . 126 . . . . . . Kills 1 | . . . 1 . . . . . . Allies Corrupted . | . . . . . . . . . . Allies Melted . | . . . . . . . . . . Intel | -11 -10 -9 -9 -9 -8 -8 -7 -6 -5 ------- Run | Yrd Mat Mat Min Exi Min Mat Fac Fac Fac Active Infowar (turns) 5102 | 322 514 370 415 889 320 228 635 790 619 Optics 4266 | . . 370 415 889 320 228 635 790 619 Terrain 521 | 288 . . . . . . . 233 . Traps 5 | . . . . . . . . . 5 Seismic 1901 | 34 514 368 103 882 . . . . . Jamming 2 | . . . . . . . . . 2 Robot Analysis Total . | . . . . . . . . . . Derelict Logs Recovered . | . . . . . . . . . . Drone Launches 4 | . . . . . 3 1 . . . Drone Recoveries 3 | . . . . . 3 . . . . Exploration | -11 -10 -9 -9 -9 -8 -8 -7 -6 -5 ------------- Run | Yrd Mat Mat Min Exi Min Mat Fac Fac Fac Turns Passed 5410 | 409 529 370 415 889 320 228 635 801 814 Spaces Moved 4871 | 243 251 145 229 688 182 184 934 990 1025 Core 46 | 10 . . . . . . . . 36 Treads . | . . . . . . . . . . Legs 1779 | 233 247 145 229 688 182 55 . . . Wheels . | . . . . . . . . . . Hover 3042 | . . . . . . 129 934 990 989 Flight 4 | . 4 . . . . . . . . Fastest Speed 34 | 50 117 120 120 120 120 38 34 34 34 Average Speed 75 | 118 129 185 149 121 151 74 34 36 50 Slowest Speed 500 | 150 190 190 190 190 190 200 98 98 500 Overloaded Moves . | . . . . . . . . . . Propulsion Burnouts . | . . . . . . . . . . Robots Hopped . | . . . . . . . . . . Potential Cave-ins . | . . . . . . . . . . Cave-ins Triggered . | . . . . . . . . . . Exploration Rate (%) 37 | 6 25 16 42 95 97 39 21 18 15 Regions Visited 9 Branch Regions 3 Pre-discovered Areas . | . . . . . . . . . . Known Exits Taken . | . . . . . . . . . . Unknown Exits Taken 9 | 1 1 1 1 1 1 1 1 1 . Scrap Searched 3 | . . . 1 . 2 . . . . Spaces Dug 14 | . 2 . . 7 . 5 . . . Terrain Destroyed 77 | . 2 . . 7 . 5 12 15 36 Melee . | . . . . . . . . . . Projectile 15 | . 2 . . 7 . 5 1 . . AOE 62 | . . . . . . . 11 15 36 Terrain Rammed . | . . . . . . . . . . Walls Destroyed . | . . . . . . . . . . Machines Disabled . | . . . . . . . . . . Actions | -11 -10 -9 -9 -9 -8 -8 -7 -6 -5 --------- Run | Yrd Mat Mat Min Exi Min Mat Fac Fac Fac Total 6208 | 295 373 193 262 719 215 252 1234 1396 1269 Wait 881 | . 47 4 4 . 19 32 251 361 163 Move 4862 | 242 250 144 228 687 181 183 933 989 1025 Hop . | . . . . . . . . . . Pick Up 54 | 8 8 3 2 10 1 5 12 4 1 Fast Attach 31 | 6 . 2 . 1 1 13 4 3 1 Attach 28 | 2 4 1 . . 1 1 6 4 9 Detach 14 | 1 3 . . . 1 2 2 2 3 Swap 50 | 1 8 4 6 7 4 1 6 7 6 Drop 46 | 2 8 4 2 6 . 5 11 7 1 Fire 213 | 33 44 31 20 8 7 10 9 19 32 Melee . | . . . . . . . . . . Ram 3 | . . . . . . . . . 3 Kick 1 | . 1 . . . . . . . . Crush . | . . . . . . . . . . Escape Stasis 25 | . . . . . . . . . 25 Rewire . | . . . . . . . . . . Trap . | . . . . . . . . . . Miscellaneous . | . . . . . . . . . . Route ------- -11/Scrapyard -10/Materials -9/Materials -9/Mines -9/Exiles (discovered 2 exits: [*Min x2]) -8/Mines (discovered 2 exits: [*Mat x2]) -8/Materials (discovered 2 exits: *Fac / [*Sto]) -7/Factory (discovered 2 exits: *Fac x2) -6/Factory -5/Factory History --------- Turn | Location | Event 34 | -11/Scrapyard | Discovered new exit (range 14) 410 | -11/Scrapyard | Entered Materials 411 | -10/Materials | Build established: Mutant 528 | -10/Materials | Discovered new exit (range 5) 939 | -10/Materials | Entered another Materials area 939 | -9/Materials | Evolved 2 slots: Propulsion x1, Utility x1 1073 | -9/Materials | Discovered new exit (range 18) 1309 | -9/Materials | Entered Mines 1715 | -9/Mines | Deemed a non-threat by the Exiles lab entrance 1717 | -9/Mines | Discovered new exit (range 5) 1724 | -9/Mines | Entered Exiles 1734 | -9/Exiles | Build established: Scavenger-Mutant 1762 | -9/Exiles | Discovered new exit (range 15) 1775 | -9/Exiles | Met 8R-AWN 1803 | -9/Exiles | Met EX-HEX 1857 | -9/Exiles | Met EX-DEC 1889 | -9/Exiles | Visited The Gauntlet 2086 | -9/Exiles | Discovered new exit (range 17) 2224 | -9/Exiles | Met EX-BIN 2369 | -9/Exiles | Aligned with FarCom system 2370 | -9/Exiles | Given EX-Vault access code 2400 | -9/Exiles | Opened EX-Vault 2406 | -9/Exiles | Found Prototype Storage 2407 | -9/Exiles | Identified Superbattery 2421 | -9/Exiles | Found Prototype Flight Unit 2440 | -9/Exiles | Found Prototype Device 2441 | -9/Exiles | Identified Supersonic Drone Bay 2472 | -9/Exiles | Warned to stay clear of 0b10 Research branches 2613 | -9/Exiles | Left Exiles lab with Supersonic Drone Bay 2613 | -9/Exiles | Entered Mines 2732 | -8/Mines | Discovered new exit (range 33) 2732 | -8/Mines | Discovered new exit (range 33) 2933 | -8/Mines | Entered Materials 2933 | -8/Materials | Evolved 2 slots: Propulsion x1, Utility x1 2942 | -8/Materials | Discovered new exit (range 29) 2944 | -8/Materials | Discovered new exit (range 59) 3161 | -8/Materials | Entered Factory 3161 | -7/Factory | Evolved 2 slots: Power x1, Propulsion x1 3338 | -7/Factory | Build established: Mutant 3511 | -7/Factory | Repaired Lgt. Deuterium Engine 3525 | -7/Factory | Discovered new exit (range 4) 3644 | -7/Factory | Fabricated Adv. System Restoration Module (x2) 3668 | -7/Factory | Build established: Hacker-Mutant 3760 | -7/Factory | Discovered new exit (range 18) 3796 | -7/Factory | Entered another Factory area 3796 | -6/Factory | Evolved 2 slots: Utility x2 3974 | -6/Factory | Fabricated HERF Cannon (x2) 4522 | -6/Factory | Garrison activated, responded to threat 4534 | -6/Factory | Repaired Aerolev Unit? 4574 | -6/Factory | Discovered new exit (range 13) 4597 | -6/Factory | Entered another Factory area 4597 | -5/Factory | Evolved 2 slots: Propulsion x1, Utility x1 4716 | -5/Factory | Fabricated Variable Charge Gun (x2) 5074 | -5/Factory | Fabricated Aerolev Unit? 5220 | -5/Factory | System corruption reached 10% 5288 | -5/Factory | Lost 18 parts (3p5n6u4w) 5300 | -5/Factory | Core integrity fell below 50% 5386 | -5/Factory | Core integrity fell below 20% 5411 | -5/Factory | Destroyed by G-50 Soldier with Heavy Laser Last Messages --------------- Slug penetrates Wall. Penetrated by Slug. R-10 Processor collects Hvy. Laser. FIGS1YDVI%SHBSZGQYNAQIFMZWNG IS K-01 Serf collects debris. Penetrated by Slug. System corrupted: Component data lost. Adv. Plasma Cannon destroyed. System corrupted: Matter fused (-5). Slammed into G-50 Soldier. Penetrated by Slug. Slammed into Y-64 Sentinel. Slug penetrates Wall. Slammed into Y-64 Sentinel. Penetrated by Slug. System corrupted: Matter fused (-10). Penetrated by Slug. K-01 Serf cleans the Neutrino Reactor. Lrg. Storage Unit destroyed. Penetrated by Slug. Map ----- +----------------------------------------------------+ | #?????????# """ #??? | | #?????????+ """ #??? | | ##### #?????????# """ #??? | | ####/####??# #?????????# """ #####??? | | # ############?????????# #??????? | | # """" # ##############?# #??????? | | # """" # # ! #?# #######? | | # """" # # #?# | | # """" # + """ """ *#?# ##+#######? | | # """" + # """ """ #?# #?????????? | | # """" # g# """ """ #?# #?????????? | | # """" # ##+############# #?????????? | | # # ## #????# #?????????? | | + # ## #????# #?????????? | | # + ## #????# +?????????? | | # # Y## #????# #?????????? | | # # ## #????# g #?????????? | | # """ # ## #????# #### ###??"" ????? | | # "G # g## #????# #??# #??? ???? | | # """ # ## #????# #??# #?? ????? | | # # ##+###### ####g### ?????? | | ######### + ; # # ####?### | | #???????# #k"""Yg # # *#?# | | #???????# # """ ! # % #?# | | #???????# # """!!!# ### | | ######### # !@# ## | | # ! ! # # | | # # | | # "" ""%# % | | ^ # ""S"" + %#* # | | ^^ # """" # %= | | ############# # # " [ ## | | ?? # ######### # % ] ??? | | ??? " " " " # ^ # ??? | | ??? " " " " + ###+## # # ??? | | ??? " " " " # ^ #?? ####???? | | ??? " " " " # """" """" """" #??""" #??##### | | ??? " " " "?# """" """" """" #??""" ! + | | ????" " " "?# """" """" """" #??""? ######## | | ????" " " ??# """" """" """" #?????? !#??????? | | ????? " " ??# """" """" """" #???? ????????? | | ????? " "???# """" """" """" # """" ?????????? | | ????? ???# """" """" ! + """" ?????????? | | ?????? ?????# # """" ?????????? | | ?????##?????# # """" ??????????? | | ????????????# ###+##### #? ??????????? | | ############# # ??# #?"""" ?????????? | | #!!! ## #??""" ????????? | | #!! ## #???""? ?????????? | | #!! ## #????????????????? | +----------------------------------------------------+ Best States ------------- Heat Dissipation 54 Energy Generation 28 Energy Capacity 450 Matter Stores 300 Matter Capacity 400 Sight Range 18 Terrain Scan Range 16 Terrain Scan Density 210 Additional Mass Support 9 Armor Coverage 225 Resistance: KI 20 Resistance: TH 20 Resistance: EX 20 Resistance: EM 20 Resistance: I 20 Resistance: S 20 Resistance: P 20 Evasion (%) 58 Offensive Hacking 10 Defensive Hacking 10 Item Schematics ----------------- Aerolev Unit | -5/Factory | Scanalyzed Robot Schematics ------------------ None Fabricated ------------ Adv. System Restoration Module | x2 | -7/Factory | Preloaded HERF Cannon | x2 | -6/Factory | Preloaded Variable Charge Gun | x2 | -5/Factory | Preloaded Aerolev Unit | x1 | -5/Factory Repaired ---------- Lgt. Deuterium Engine | 26% | -7/Factory Aerolev Unit | 35% | -6/Factory Studied --------- None Alien Tech Used ----------------- None Achievements -------------- Myspace Challenges ------------ None Game ------ Seed VampiricSupersonicBox Manual? 0 Play Time 01:40:13 Cumulative 46.4 hours Start 2026.08.21 @ 05:52:18 End 2026.08.21 @ 07:32:42 Sessions 1 Manual Loads 0 Difficulty Adventurer Special Mode None Game No. 31 Rogue 0 Adventurer 31 Explorer 0 Win Type - Total 0 Types 0/0/0/0/0/0/0/0/0/0 Lore% 23 Gallery% 30 Achievement% 24 Wizard Run 0 Options --------- Layout 2 ASCII 0 Keyboard 0 Movement Arrows Keybinds 0 Fullscreen 1 Font 16/Terminus Map View 55x47 Zoom Use 9% Tactical HUD 0 Map Filters NONE Filters NONE Steam 1 RUN: a17ae11e-1b49-4c22-8151-dade1a877ccd